[Event "*** Titled Tuesday Blitz"]
[Site "Chess.com"]
[Date "2021.03.09"]
[Round "7"]
[White "barbara25"]
[Black "Sychev_Klementy"]
[Result "0-1"]
[WhiteElo "2290"]
[BlackElo "2865"]
[TimeControl "180+1"]
[EndTime "11:16:31 PST"]
[Termination "Sychev_Klementy won by resignation"]

1. e4 {[%clk 0:02:59.8]} 1... Nf6 {[%clk 0:03:00.9]} 2. e5 {[%clk 0:02:58.2]}
2... Nd5 {[%clk 0:03:01.1]} 3. d4 {[%clk 0:02:57.7]} 3... d6 {[%clk 0:03:01.7]}
4. Bc4 {[%clk 0:02:57.8]} 4... Nb6 {[%clk 0:02:59.5]} 5. Bd3 {[%clk 0:02:50.5]}
5... g6 {[%clk 0:02:58.2]} 6. Nf3 {[%clk 0:02:50]} 6... Bg7 {[%clk 0:02:57.8]}
7. O-O {[%clk 0:02:49.7]} 7... O-O {[%clk 0:02:57.4]} 8. Re1 {[%clk 0:02:49.6]}
8... c5 {[%clk 0:02:56.5]} 9. exd6 {[%clk 0:02:46.7]} 9... exd6 {[%clk
0:02:54.1]} 10. dxc5 {[%clk 0:02:47.1]} 10... dxc5 {[%clk 0:02:54.4]} 11. Nc3
{[%clk 0:02:44.3]} 11... Nc6 {[%clk 0:02:54.3]} 12. Be3 {[%clk 0:02:38.6]} 12...
c4 {[%clk 0:02:52.9]} 13. Be2 {[%clk 0:02:38.6]} 13... Bf5 {[%clk 0:02:51.5]}
14. Qc1 {[%clk 0:02:30.8]} 14... Re8 {[%clk 0:02:49.1]} 15. a3 {[%clk
0:02:28.4]} 15... Rc8 {[%clk 0:02:47.9]} 16. Bxb6 {[%clk 0:02:21.5]} 16... Qxb6
{[%clk 0:02:47.3]} 17. Bxc4 {[%clk 0:02:17.7]} 17... Rxe1+ {[%clk 0:02:47.3]}
18. Nxe1 {[%clk 0:02:17.6]} 18... Nd4 {[%clk 0:02:47.6]} 19. Bd3 {[%clk
0:02:15.8]} 19... Bxd3 {[%clk 0:02:47.4]} 20. Nxd3 {[%clk 0:02:11.3]} 20... Rxc3
{[%clk 0:02:47.1]} 0-1

[Event "*** Titled Tuesday Blitz"]
[Site "Chess.com"]
[Date "2021.03.09"]
[Round "7"]
[White "nrvisakh"]
[Black "SerGo055"]
[Result "1-0"]
[WhiteElo "2768"]
[BlackElo "2592"]
[TimeControl "180+1"]
[EndTime "11:17:21 PST"]
[Termination "nrvisakh won by checkmate"]

1. e4 {[%clk 0:03:00.9]} 1... d5 {[%clk 0:02:59]} 2. exd5 {[%clk 0:03:00.2]}
2... Qxd5 {[%clk 0:02:58]} 3. Nf3 {[%clk 0:02:59.2]} 3... Nf6 {[%clk 0:02:57.2]}
4. Nc3 {[%clk 0:02:58.3]} 4... Qd8 {[%clk 0:02:56.9]} 5. d4 {[%clk 0:02:57.1]}
5... c6 {[%clk 0:02:55.7]} 6. Bg5 {[%clk 0:02:55.4]} 6... Bf5 {[%clk 0:02:54.1]}
7. Bd3 {[%clk 0:02:52.4]} 7... Bg6 {[%clk 0:02:51.3]} 8. Qe2 {[%clk 0:02:50.7]}
8... e6 {[%clk 0:02:44.7]} 9. O-O-O {[%clk 0:02:50.6]} 9... Nbd7 {[%clk
0:02:37.1]} 10. d5 {[%clk 0:02:24.3]} 10... cxd5 {[%clk 0:02:30.8]} 11. Nxd5
{[%clk 0:02:24.4]} 11... Qa5 {[%clk 0:02:29]} 12. Bxg6 {[%clk 0:02:23.1]} 12...
hxg6 {[%clk 0:02:24.6]} 13. Bxf6 {[%clk 0:02:19]} 13... Nxf6 {[%clk 0:02:14.4]}
14. Nxf6+ {[%clk 0:02:11.7]} 14... gxf6 {[%clk 0:02:14.1]} 15. Nd4 {[%clk
0:01:57.5]} 15... Qxa2 {[%clk 0:02:05]} 16. Qb5+ {[%clk 0:01:56.4]} 16... Ke7
{[%clk 0:02:01.5]} 17. Nf5+ {[%clk 0:01:54.9]} 17... gxf5 {[%clk 0:01:59.1]} 18.
Qd7# {[%clk 0:01:55.8]} 1-0

[Event "*** Titled Tuesday Blitz"]
[Site "Chess.com"]
[Date "2021.03.09"]
[Round "7"]
[White "Speed-O-Sonic"]
[Black "Brave_spirit12"]
[Result "0-1"]
[WhiteElo "2335"]
[BlackElo "2586"]
[TimeControl "180+1"]
[EndTime "11:17:37 PST"]
[Termination "Brave_spirit12 won by resignation"]

1. d4 {[%clk 0:03:00.9]} 1... Nf6 {[%clk 0:02:59.4]} 2. Bg5 {[%clk 0:03:00.5]}
2... c5 {[%clk 0:02:59.4]} 3. d5 {[%clk 0:02:58.9]} 3... e6 {[%clk 0:02:57.5]}
4. Nc3 {[%clk 0:02:57]} 4... exd5 {[%clk 0:02:53.9]} 5. Nxd5 {[%clk 0:02:47.5]}
5... Be7 {[%clk 0:02:53.2]} 6. Nxe7 {[%clk 0:02:42.5]} 6... Qxe7 {[%clk
0:02:54.1]} 7. e3 {[%clk 0:02:42.1]} 7... O-O {[%clk 0:02:54]} 8. Bd3 {[%clk
0:02:40.6]} 8... d5 {[%clk 0:02:50.2]} 9. Nf3 {[%clk 0:02:39.8]} 9... Nc6 {[%clk
0:02:49.1]} 10. O-O {[%clk 0:02:37]} 10... h6 {[%clk 0:02:49.5]} 11. Bh4 {[%clk
0:02:29.6]} 11... Bg4 {[%clk 0:02:48.3]} 12. h3 {[%clk 0:02:13.7]} 12... Bh5
{[%clk 0:02:47.6]} 13. g4 {[%clk 0:02:08.1]} 13... Bg6 {[%clk 0:02:45.7]} 14.
Bxg6 {[%clk 0:02:08.4]} 14... fxg6 {[%clk 0:02:46.6]} 15. Bxf6 {[%clk 0:02:07]}
15... Qxf6 {[%clk 0:02:45.8]} 16. Qxd5+ {[%clk 0:02:07.1]} 16... Kh7 {[%clk
0:02:44.4]} 17. Kg2 {[%clk 0:01:47.6]} 17... Rad8 {[%clk 0:02:40.3]} 18. Qe4
{[%clk 0:01:47.1]} 18... Rde8 {[%clk 0:02:39.1]} 19. Qd5 {[%clk 0:01:46.9]}
19... Nb4 {[%clk 0:02:36.8]} 20. Qxb7 {[%clk 0:01:45.7]} 20... Re7 {[%clk
0:02:36.9]} 21. Qxe7 {[%clk 0:01:25.1]} 21... Qxe7 {[%clk 0:02:35.3]} 22. c3
{[%clk 0:01:25]} 22... Nc2 {[%clk 0:02:33.3]} 23. Rac1 {[%clk 0:01:23.1]} 23...
Qe4 {[%clk 0:02:33.9]} 0-1

[Event "*** Titled Tuesday Blitz"]
[Site "Chess.com"]
[Date "2021.03.09"]
[Round "7"]
[White "onnoelgersma"]
[Black "lelya96"]
[Result "1-0"]
[WhiteElo "2393"]
[BlackElo "2255"]
[TimeControl "180+1"]
[EndTime "11:18:24 PST"]
[Termination "onnoelgersma won by resignation"]

1. e4 {[%clk 0:03:00.9]} 1... e5 {[%clk 0:02:44.7]} 2. Nf3 {[%clk 0:03:00.2]}
2... Nc6 {[%clk 0:02:42.5]} 3. Nc3 {[%clk 0:03:01.1]} 3... Nf6 {[%clk
0:02:40.8]} 4. Bb5 {[%clk 0:03:01.6]} 4... Bb4 {[%clk 0:02:37.6]} 5. Bxc6 {[%clk
0:03:00.3]} 5... bxc6 {[%clk 0:02:30.2]} 6. d3 {[%clk 0:03:00.2]} 6... d6 {[%clk
0:02:24]} 7. O-O {[%clk 0:02:58.1]} 7... h6 {[%clk 0:02:23.4]} 8. Ne2 {[%clk
0:02:53]} 8... c5 {[%clk 0:02:18.4]} 9. Ng3 {[%clk 0:02:45.6]} 9... O-O {[%clk
0:02:17.2]} 10. a4 {[%clk 0:02:45.1]} 10... Ba5 {[%clk 0:02:11.3]} 11. Qe2
{[%clk 0:02:36.2]} 11... Qe7 {[%clk 0:02:05.6]} 12. Nh4 {[%clk 0:02:19.6]} 12...
Nh7 {[%clk 0:02:00.6]} 13. Nhf5 {[%clk 0:02:11.9]} 13... Qf6 {[%clk 0:01:33.9]}
14. Nh5 {[%clk 0:02:10.4]} 14... Qh4 {[%clk 0:01:22.5]} 15. Nhxg7 {[%clk
0:01:53.5]} 15... Bxf5 {[%clk 0:01:18.2]} 16. Nxf5 {[%clk 0:01:51.7]} 16... Qf6
{[%clk 0:01:12.3]} 17. Bxh6 {[%clk 0:01:49.4]} 1-0

[Event "*** Titled Tuesday Blitz"]
[Site "Chess.com"]
[Date "2021.03.09"]
[Round "7"]
[White "Zmeeed63"]
[Black "GM_Huschenbeth"]
[Result "0-1"]
[WhiteElo "2453"]
[BlackElo "2619"]
[TimeControl "180+1"]
[EndTime "11:18:30 PST"]
[Termination "GM_Huschenbeth won by resignation"]

1. d4 {[%clk 0:03:00.9]} 1... Nf6 {[%clk 0:02:56.7]} 2. c4 {[%clk 0:03:00.1]}
2... e6 {[%clk 0:02:46.3]} 3. Nc3 {[%clk 0:02:59.9]} 3... Bb4 {[%clk 0:02:43.3]}
4. f3 {[%clk 0:03:00.4]} 4... O-O {[%clk 0:02:33.7]} 5. e4 {[%clk 0:02:59]} 5...
c5 {[%clk 0:02:33.3]} 6. d5 {[%clk 0:02:58.6]} 6... b5 {[%clk 0:02:32.9]} 7. e5
{[%clk 0:02:57.7]} 7... exd5 {[%clk 0:02:24.5]} 8. exf6 {[%clk 0:02:54.2]} 8...
d4 {[%clk 0:02:24.6]} 9. Ne2 {[%clk 0:02:53.8]} 9... Qxf6 {[%clk 0:02:13.8]} 10.
Bd2 {[%clk 0:02:50.4]} 10... dxc3 {[%clk 0:02:13.2]} 11. bxc3 {[%clk 0:02:51.3]}
11... Ba5 {[%clk 0:02:12.9]} 12. cxb5 {[%clk 0:02:51.8]} 12... d5 {[%clk
0:02:11.8]} 13. g3 {[%clk 0:02:34.8]} 13... Qxf3 {[%clk 0:02:09.8]} 14. Rg1
{[%clk 0:02:33.2]} 14... Re8 {[%clk 0:01:59.1]} 15. Bg2 {[%clk 0:02:26.2]} 15...
Qh5 {[%clk 0:01:58.8]} 16. Rf1 {[%clk 0:02:19.7]} 16... Bg4 {[%clk 0:01:58.2]}
17. Rf2 {[%clk 0:02:19.1]} 17... Qxh2 {[%clk 0:01:52]} 18. Qa4 {[%clk
0:02:14.3]} 18... Qxg3 {[%clk 0:01:48.7]} 19. Kf1 {[%clk 0:01:43.3]} 19... Bxe2+
{[%clk 0:01:45.2]} 20. Kg1 {[%clk 0:01:43.1]} 20... Bb6 {[%clk 0:01:39.7]} 21.
Re1 {[%clk 0:01:39.9]} 21... c4 {[%clk 0:01:36.7]} 0-1

[Event "*** Titled Tuesday Blitz"]
[Site "Chess.com"]
[Date "2021.03.09"]
[Round "7"]
[White "GoltsevDmitry2000"]
[Black "Gulkov_Igor"]
[Result "0-1"]
[WhiteElo "2690"]
[BlackElo "2543"]
[TimeControl "180+1"]
[EndTime "11:18:37 PST"]
[Termination "Gulkov_Igor won by checkmate"]

1. e4 {[%clk 0:02:59.2]} 1... c5 {[%clk 0:02:59.4]} 2. Nf3 {[%clk 0:02:57.9]}
2... d6 {[%clk 0:02:59.2]} 3. d4 {[%clk 0:02:57.5]} 3... cxd4 {[%clk 0:02:59.3]}
4. Nxd4 {[%clk 0:02:58.4]} 4... Nf6 {[%clk 0:02:59.4]} 5. Nc3 {[%clk 0:02:58.5]}
5... a6 {[%clk 0:02:59.3]} 6. Be2 {[%clk 0:02:57.7]} 6... e6 {[%clk 0:02:59.1]}
7. O-O {[%clk 0:02:57.3]} 7... Qc7 {[%clk 0:02:59.2]} 8. Be3 {[%clk 0:02:57.1]}
8... b5 {[%clk 0:02:58.8]} 9. a3 {[%clk 0:02:56.7]} 9... Bb7 {[%clk 0:02:58.9]}
10. Bf3 {[%clk 0:02:56.8]} 10... Nbd7 {[%clk 0:02:59]} 11. Nb3 {[%clk
0:02:54.6]} 11... Be7 {[%clk 0:02:57.8]} 12. g3 {[%clk 0:02:48.2]} 12... O-O
{[%clk 0:02:57.6]} 13. h3 {[%clk 0:02:48.1]} 13... Ne5 {[%clk 0:02:51.8]} 14.
Bg2 {[%clk 0:02:48.5]} 14... Nc4 {[%clk 0:02:51]} 15. Bc1 {[%clk 0:02:47.6]}
15... Rfd8 {[%clk 0:02:50]} 16. Nd4 {[%clk 0:02:42.6]} 16... d5 {[%clk
0:02:44.4]} 17. exd5 {[%clk 0:02:39]} 17... Nxd5 {[%clk 0:02:43.8]} 18. Nxd5
{[%clk 0:02:39.4]} 18... Bxd5 {[%clk 0:02:43.7]} 19. Bxd5 {[%clk 0:02:35.6]}
19... Rxd5 {[%clk 0:02:43.4]} 20. Qg4 {[%clk 0:02:36.1]} 20... Bf6 {[%clk
0:02:36.9]} 21. Nxe6 {[%clk 0:02:30.5]} 21... fxe6 {[%clk 0:02:30.7]} 22. Qxe6+
{[%clk 0:02:31.4]} 22... Qf7 {[%clk 0:02:30.1]} 23. Qc6 {[%clk 0:02:31.9]} 23...
Rad8 {[%clk 0:02:16.1]} 24. Qxa6 {[%clk 0:02:30.8]} 24... Qh5 {[%clk 0:02:06.9]}
25. Kh2 {[%clk 0:02:23.4]} 25... Nd2 {[%clk 0:02:03.4]} 26. Bxd2 {[%clk
0:02:20.4]} 26... Rxd2 {[%clk 0:02:02.6]} 27. c4 {[%clk 0:02:17.4]} 27... Qf3
{[%clk 0:01:53.4]} 28. Kg1 {[%clk 0:02:00.8]} 28... Bd4 {[%clk 0:01:45.2]} 29.
Qe6+ {[%clk 0:02:01.1]} 29... Kh8 {[%clk 0:01:43.4]} 30. Qe1 {[%clk 0:01:57.1]}
30... Qxg3+ {[%clk 0:01:38.8]} 31. Kh1 {[%clk 0:01:56.5]} 31... Qxh3+ {[%clk
0:01:38.2]} 32. Kg1 {[%clk 0:01:56.9]} 32... Qg4+ {[%clk 0:01:34.4]} 33. Kh1
{[%clk 0:01:54.7]} 33... Rd3 {[%clk 0:01:32.6]} 34. f3 {[%clk 0:01:52.4]} 34...
Qh3# {[%clk 0:01:32.2]} 0-1

[Event "*** Titled Tuesday Blitz"]
[Site "Chess.com"]
[Date "2021.03.09"]
[Round "7"]
[White "Chernov_Mikhail"]
[Black "AlexSuv"]
[Result "1-0"]
[WhiteElo "2409"]
[BlackElo "2508"]
[TimeControl "180+1"]
[EndTime "11:18:58 PST"]
[Termination "Chernov_Mikhail won by resignation"]

1. e4 {[%clk 0:03:00.9]} 1... c5 {[%clk 0:02:58.9]} 2. Nf3 {[%clk 0:03:00.7]}
2... e6 {[%clk 0:02:59.3]} 3. d4 {[%clk 0:03:01.1]} 3... cxd4 {[%clk 0:03:00.2]}
4. Nxd4 {[%clk 0:03:02]} 4... Nc6 {[%clk 0:02:58.4]} 5. Be2 {[%clk 0:03:02.1]}
5... Nf6 {[%clk 0:02:57.1]} 6. Nc3 {[%clk 0:03:02.1]} 6... Bb4 {[%clk
0:02:57.3]} 7. O-O {[%clk 0:03:02.3]} 7... d5 {[%clk 0:02:48.4]} 8. exd5 {[%clk
0:02:55.8]} 8... exd5 {[%clk 0:02:42.8]} 9. Bg5 {[%clk 0:02:49.3]} 9... Bxc3
{[%clk 0:02:40.1]} 10. bxc3 {[%clk 0:02:48.8]} 10... O-O {[%clk 0:02:40.4]} 11.
Bd3 {[%clk 0:02:47.6]} 11... h6 {[%clk 0:02:40.3]} 12. Bh4 {[%clk 0:02:45.7]}
12... Qd6 {[%clk 0:02:35.4]} 13. Nb5 {[%clk 0:02:34.2]} 13... Qf4 {[%clk
0:02:35.1]} 14. Bg3 {[%clk 0:02:34.2]} 14... Qg4 {[%clk 0:02:25.8]} 15. Be2
{[%clk 0:02:04.8]} 15... Qg6 {[%clk 0:02:12.5]} 16. Nc7 {[%clk 0:01:56.7]} 16...
Rb8 {[%clk 0:02:06.4]} 17. Nxd5 {[%clk 0:01:35]} 17... Nxd5 {[%clk 0:02:01.6]}
18. Qxd5 {[%clk 0:01:35.9]} 18... Be6 {[%clk 0:01:53.8]} 19. Qf3 {[%clk
0:01:31.2]} 19... Rbd8 {[%clk 0:01:38.1]} 20. Bd3 {[%clk 0:01:30.6]} 20... Qg5
{[%clk 0:01:35.9]} 21. Rab1 {[%clk 0:01:29.9]} 21... Bc8 {[%clk 0:01:28.2]} 22.
Qe4 {[%clk 0:01:19.9]} 22... g6 {[%clk 0:01:23]} 23. Bh4 {[%clk 0:01:18.4]}
23... Qf6 {[%clk 0:01:18.7]} 24. Bxf6 {[%clk 0:01:18.1]} 1-0

[Event "*** Titled Tuesday Blitz"]
[Site "Chess.com"]
[Date "2021.03.09"]
[Round "7"]
[White "IMAghasiyevKamal"]
[Black "Fortitudine"]
[Result "1-0"]
[WhiteElo "2491"]
[BlackElo "2298"]
[TimeControl "180+1"]
[EndTime "11:19:00 PST"]
[Termination "IMAghasiyevKamal won by resignation"]

1. d4 {[%clk 0:03:00.9]} 1... Nf6 {[%clk 0:02:59.2]} 2. c4 {[%clk 0:02:57.2]}
2... c5 {[%clk 0:02:58.9]} 3. d5 {[%clk 0:02:57.3]} 3... b5 {[%clk 0:02:58.3]}
4. cxb5 {[%clk 0:02:57.6]} 4... a6 {[%clk 0:02:58.8]} 5. b6 {[%clk 0:02:57]}
5... Qxb6 {[%clk 0:02:57.8]} 6. Nc3 {[%clk 0:02:55.2]} 6... g6 {[%clk 0:02:58]}
7. e4 {[%clk 0:02:52.7]} 7... d6 {[%clk 0:02:58.2]} 8. Be2 {[%clk 0:02:50]} 8...
Bg7 {[%clk 0:02:58.1]} 9. Nf3 {[%clk 0:02:48.4]} 9... O-O {[%clk 0:02:57.5]} 10.
O-O {[%clk 0:02:47.7]} 10... a5 {[%clk 0:02:52.5]} 11. e5 {[%clk 0:02:35.5]}
11... Ne8 {[%clk 0:02:52]} 12. Bf4 {[%clk 0:02:27.6]} 12... Qxb2 {[%clk
0:02:37.3]} 13. Nb5 {[%clk 0:02:26.7]} 13... Qb4 {[%clk 0:02:21.9]} 14. Qc1
{[%clk 0:02:18.6]} 14... Ba6 {[%clk 0:01:50.5]} 15. a4 {[%clk 0:02:10.9]} 15...
Bxb5 {[%clk 0:01:37.1]} 16. Bxb5 {[%clk 0:02:06.8]} 16... Nc7 {[%clk 0:01:30.5]}
17. Rb1 {[%clk 0:02:04.9]} 17... Qe4 {[%clk 0:01:25]} 18. Re1 {[%clk 0:01:53.1]}
18... Qxd5 {[%clk 0:01:22.2]} 19. exd6 {[%clk 0:01:47.9]} 19... exd6 {[%clk
0:01:18.4]} 20. Rd1 {[%clk 0:01:45.4]} 20... Bd4 {[%clk 0:00:55.5]} 21. Nxd4
{[%clk 0:01:42.5]} 21... cxd4 {[%clk 0:00:52.1]} 22. Qxc7 {[%clk 0:01:41.4]} 1-0

[Event "*** Titled Tuesday Blitz"]
[Site "Chess.com"]
[Date "2021.03.09"]
[Round "7"]
[White "KetiGrant"]
[Black "tgpgoat"]
[Result "1-0"]
[WhiteElo "2346"]
[BlackElo "2179"]
[TimeControl "180+1"]
[EndTime "11:19:13 PST"]
[Termination "KetiGrant won by checkmate"]

1. e4 {[%clk 0:03:00.9]} 1... c5 {[%clk 0:02:59.1]} 2. Nf3 {[%clk 0:03:00.7]}
2... Nc6 {[%clk 0:02:59.3]} 3. d4 {[%clk 0:02:59.8]} 3... cxd4 {[%clk
0:03:00.2]} 4. Nxd4 {[%clk 0:03:00.2]} 4... e6 {[%clk 0:03:00.8]} 5. Nc3 {[%clk
0:02:59.8]} 5... a6 {[%clk 0:02:59.9]} 6. Nxc6 {[%clk 0:02:54.2]} 6... bxc6
{[%clk 0:02:59.2]} 7. Bd3 {[%clk 0:02:53.2]} 7... d5 {[%clk 0:02:59.1]} 8. O-O
{[%clk 0:02:53.2]} 8... Nf6 {[%clk 0:02:58.8]} 9. Re1 {[%clk 0:02:53.3]} 9...
Be7 {[%clk 0:02:58.4]} 10. e5 {[%clk 0:02:49.7]} 10... Nd7 {[%clk 0:02:58.4]}
11. Qg4 {[%clk 0:02:50.2]} 11... Kf8 {[%clk 0:02:51.3]} 12. Na4 {[%clk
0:02:49.2]} 12... c5 {[%clk 0:02:49.6]} 13. c4 {[%clk 0:02:48.3]} 13... Bb7
{[%clk 0:02:45.4]} 14. b3 {[%clk 0:02:46.2]} 14... d4 {[%clk 0:02:42.8]} 15. Nb2
{[%clk 0:02:32.4]} 15... Qc7 {[%clk 0:02:41.6]} 16. Bf4 {[%clk 0:02:30.4]} 16...
h5 {[%clk 0:02:35.2]} 17. Qe2 {[%clk 0:02:22]} 17... g5 {[%clk 0:02:27.2]} 18.
Bd2 {[%clk 0:02:20.9]} 18... Kg7 {[%clk 0:02:19.3]} 19. Be4 {[%clk 0:02:16.3]}
19... Rag8 {[%clk 0:02:14.5]} 20. Nd3 {[%clk 0:02:13.6]} 20... Kf8 {[%clk
0:02:11.7]} 21. a3 {[%clk 0:02:01.5]} 21... g4 {[%clk 0:02:07.2]} 22. b4 {[%clk
0:01:54.7]} 22... Bxe4 {[%clk 0:02:07]} 23. Qxe4 {[%clk 0:01:54]} 23... cxb4
{[%clk 0:02:06.2]} 24. axb4 {[%clk 0:01:52.9]} 24... Qxc4 {[%clk 0:01:44.2]} 25.
Rec1 {[%clk 0:01:51.5]} 25... Qd5 {[%clk 0:01:40.3]} 26. Qxd5 {[%clk 0:01:48.2]}
26... exd5 {[%clk 0:01:41.2]} 27. Rxa6 {[%clk 0:01:46.9]} 27... Kg7 {[%clk
0:01:36.1]} 28. Ra7 {[%clk 0:01:39.9]} 28... Nxe5 {[%clk 0:00:53.2]} 29. Nxe5
{[%clk 0:01:36.2]} 29... Bf6 {[%clk 0:00:52.9]} 30. Rxf7# {[%clk 0:01:32.7]} 1-0

[Event "*** Titled Tuesday Blitz"]
[Site "Chess.com"]
[Date "2021.03.09"]
[Round "7"]
[White "NefeLV"]
[Black "PawnEatingZombie"]
[Result "0-1"]
[WhiteElo "1839"]
[BlackElo "2233"]
[TimeControl "180+1"]
[EndTime "11:19:14 PST"]
[Termination "PawnEatingZombie won by resignation"]

1. e4 {[%clk 0:03:00.9]} 1... c6 {[%clk 0:02:53.1]} 2. d4 {[%clk 0:02:59.4]}
2... d5 {[%clk 0:02:51.6]} 3. Nc3 {[%clk 0:02:57.1]} 3... dxe4 {[%clk
0:02:51.3]} 4. Nxe4 {[%clk 0:02:58]} 4... Bf5 {[%clk 0:02:51.4]} 5. Ng3 {[%clk
0:02:57.2]} 5... Bg6 {[%clk 0:02:51.9]} 6. Nf3 {[%clk 0:02:56]} 6... Nd7 {[%clk
0:02:51.2]} 7. h4 {[%clk 0:02:55.8]} 7... h6 {[%clk 0:02:51.7]} 8. c4 {[%clk
0:02:52.7]} 8... e6 {[%clk 0:02:47.2]} 9. h5 {[%clk 0:02:52.8]} 9... Bh7 {[%clk
0:02:46.6]} 10. Bd3 {[%clk 0:02:51.9]} 10... Bxd3 {[%clk 0:02:46.3]} 11. Qxd3
{[%clk 0:02:52.8]} 11... Ngf6 {[%clk 0:02:44.9]} 12. Bd2 {[%clk 0:02:45]} 12...
Be7 {[%clk 0:02:42.7]} 13. O-O-O {[%clk 0:02:44.2]} 13... Qb6 {[%clk 0:02:36.4]}
14. Ne5 {[%clk 0:02:32.4]} 14... Rd8 {[%clk 0:02:21.1]} 15. f4 {[%clk
0:02:20.8]} 15... Nxe5 {[%clk 0:01:40.9]} 16. fxe5 {[%clk 0:02:18.8]} 16... Ng4
{[%clk 0:01:41.4]} 17. c5 {[%clk 0:02:14.1]} 17... Nxe5 {[%clk 0:01:34.9]} 18.
Qc3 {[%clk 0:02:02.7]} 18... Qa6 {[%clk 0:01:01.4]} 19. dxe5 {[%clk 0:02:01]}
19... Qxa2 {[%clk 0:01:01.6]} 20. Be3 {[%clk 0:01:45.3]} 20... O-O {[%clk
0:00:56.6]} 21. Qc2 {[%clk 0:01:36.8]} 21... Rd5 {[%clk 0:00:53.4]} 22. b4
{[%clk 0:01:30.4]} 22... Qa3+ {[%clk 0:00:51]} 23. Qb2 {[%clk 0:01:28.2]} 23...
Qxe3+ {[%clk 0:00:50.6]} 24. Kb1 {[%clk 0:01:28.3]} 24... Qxg3 {[%clk
0:00:46.7]} 0-1

[Event "*** Titled Tuesday Blitz"]
[Site "Chess.com"]
[Date "2021.03.09"]
[Round "7"]
[White "ViktoriyaTarasova"]
[Black "IANOV0007"]
[Result "0-1"]
[WhiteElo "2321"]
[BlackElo "2489"]
[TimeControl "180+1"]
[EndTime "11:19:16 PST"]
[Termination "IANOV0007 won by resignation"]

1. d4 {[%clk 0:03:00.9]} 1... d6 {[%clk 0:02:58.9]} 2. c4 {[%clk 0:03:00.6]}
2... g6 {[%clk 0:02:58.3]} 3. e4 {[%clk 0:02:59.6]} 3... Bg7 {[%clk 0:02:57.9]}
4. Nc3 {[%clk 0:02:59]} 4... c5 {[%clk 0:02:57.9]} 5. d5 {[%clk 0:02:58.1]} 5...
e6 {[%clk 0:02:57]} 6. Bd3 {[%clk 0:02:54.5]} 6... Ne7 {[%clk 0:02:55.7]} 7.
Nge2 {[%clk 0:02:52.9]} 7... a6 {[%clk 0:02:54.8]} 8. a4 {[%clk 0:02:51.4]} 8...
Nd7 {[%clk 0:02:53.8]} 9. f4 {[%clk 0:02:48.8]} 9... exd5 {[%clk 0:02:52.1]} 10.
cxd5 {[%clk 0:02:48.7]} 10... O-O {[%clk 0:02:49.9]} 11. O-O {[%clk 0:02:48.6]}
11... f5 {[%clk 0:02:49]} 12. Ng3 {[%clk 0:02:44.9]} 12... Rb8 {[%clk
0:02:36.4]} 13. Re1 {[%clk 0:02:37.3]} 13... Kh8 {[%clk 0:02:29.5]} 14. Be3
{[%clk 0:02:31.1]} 14... Nf6 {[%clk 0:02:17.5]} 15. h3 {[%clk 0:02:28.9]} 15...
fxe4 {[%clk 0:02:14.6]} 16. Ngxe4 {[%clk 0:02:16.2]} 16... Nfxd5 {[%clk
0:02:08.4]} 17. Bd2 {[%clk 0:01:43.8]} 17... Nxf4 {[%clk 0:02:04.2]} 18. Bc2
{[%clk 0:01:43.6]} 18... Nc6 {[%clk 0:01:53.6]} 19. Rf1 {[%clk 0:01:42.7]} 19...
Be5 {[%clk 0:01:46.7]} 20. Ne2 {[%clk 0:01:35.8]} 20... Nxe2+ {[%clk 0:01:40.5]}
21. Qxe2 {[%clk 0:01:36]} 21... Bf5 {[%clk 0:01:38.1]} 22. Bd3 {[%clk 0:01:32]}
22... Nd4 {[%clk 0:01:36.2]} 23. Qd1 {[%clk 0:01:26.6]} 23... c4 {[%clk
0:01:33.2]} 24. Bb1 {[%clk 0:01:25.5]} 24... Nb3 {[%clk 0:01:31.5]} 25. Ra3
{[%clk 0:01:23]} 25... d5 {[%clk 0:01:28.8]} 26. Bg5 {[%clk 0:01:21.8]} 26...
Qb6+ {[%clk 0:01:26.2]} 27. Nf2 {[%clk 0:01:18.6]} 27... Bxb1 {[%clk 0:01:18.6]}
28. Qxb1 {[%clk 0:01:17.9]} 28... Bd4 {[%clk 0:01:17.8]} 29. Bh4 {[%clk
0:01:17.5]} 29... Nd2 {[%clk 0:01:11.9]} 0-1

[Event "*** Titled Tuesday Blitz"]
[Site "Chess.com"]
[Date "2021.03.09"]
[Round "7"]
[White "ljuks68"]
[Black "Mr_Sinigami"]
[Result "1-0"]
[WhiteElo "2451"]
[BlackElo "2578"]
[TimeControl "180+1"]
[EndTime "11:19:19 PST"]
[Termination "ljuks68 won by resignation"]

1. e4 {[%clk 0:03:00.9]} 1... d5 {[%clk 0:02:39.5]} 2. exd5 {[%clk 0:02:59.4]}
2... Nf6 {[%clk 0:02:37.8]} 3. d4 {[%clk 0:02:58]} 3... Nxd5 {[%clk 0:02:35.2]}
4. c4 {[%clk 0:02:58]} 4... Nb6 {[%clk 0:02:35]} 5. Nf3 {[%clk 0:02:58.2]} 5...
g6 {[%clk 0:02:35.1]} 6. Nc3 {[%clk 0:02:58.4]} 6... Bg7 {[%clk 0:02:35.5]} 7.
c5 {[%clk 0:02:58.7]} 7... Nd5 {[%clk 0:02:35.4]} 8. Bc4 {[%clk 0:02:58.5]} 8...
c6 {[%clk 0:02:35.7]} 9. O-O {[%clk 0:02:57]} 9... O-O {[%clk 0:02:35.9]} 10.
Re1 {[%clk 0:02:57.1]} 10... e6 {[%clk 0:02:34.4]} 11. Bg5 {[%clk 0:02:44.3]}
11... Qc7 {[%clk 0:02:34.1]} 12. Bh4 {[%clk 0:02:43.5]} 12... b6 {[%clk
0:02:32]} 13. Bg3 {[%clk 0:02:37.7]} 13... Qb7 {[%clk 0:02:31.9]} 14. Be5 {[%clk
0:02:34.1]} 14... Nd7 {[%clk 0:02:23.5]} 15. Bxg7 {[%clk 0:02:32.7]} 15... Kxg7
{[%clk 0:02:24.3]} 16. cxb6 {[%clk 0:02:25.4]} 16... axb6 {[%clk 0:02:20.4]} 17.
Ne5 {[%clk 0:02:19.3]} 17... b5 {[%clk 0:02:12.5]} 18. Bxd5 {[%clk 0:02:15.3]}
18... cxd5 {[%clk 0:02:11.8]} 19. Qd2 {[%clk 0:02:12.9]} 19... b4 {[%clk
0:02:07.6]} 20. Ne2 {[%clk 0:02:08.2]} 20... Nf6 {[%clk 0:02:00.6]} 21. Ng3
{[%clk 0:01:57.6]} 21... Qb6 {[%clk 0:01:58.3]} 22. h4 {[%clk 0:01:52.9]} 22...
h5 {[%clk 0:01:54.7]} 23. Re3 {[%clk 0:01:46.1]} 23... Bb7 {[%clk 0:01:41.6]}
24. Rf3 {[%clk 0:01:45.8]} 24... Ne4 {[%clk 0:01:41.7]} 25. Qf4 {[%clk
0:01:30.6]} 25... Qd8 {[%clk 0:01:37.1]} 26. Nxf7 {[%clk 0:01:03.9]} 26... Qf6
{[%clk 0:01:34.8]} 27. Qh6+ {[%clk 0:01:02.8]} 27... Kxf7 {[%clk 0:01:34.6]} 28.
Qh7+ {[%clk 0:00:55.5]} 28... Ke8 {[%clk 0:01:31.8]} 29. Rxf6 {[%clk 0:00:55]}
1-0